Workbook

Sheet Sheet1
B1: Going Around On Circles
B2: (The Epicycloid)
B4: This graphing utility lets you investigate
B5: the path traced out by a fixed point
B6: on a small circle as it rolls around
B7: the outside rim of a larger, fixed circle.
A10: What is the radius R of the larger fixed circle?
C11: (R is between 3 and 12) | E11: =F11 -> 12 | F11: 12.00
A14: What is the radius r of the smaller rolling circle?
C15: (r is between 1 and 6) | E15: =F15 -> 2 | F15: 2.00
A22: Click each item below for suggestions and investigations | I22: Now trace along the epicycloid: q = | N22: =dQ* L23 -> 3.68 | O22: radians
B23: Item 1 | L23: 23
B24: Item 2 | L24: then: | M24: x = | N24: =LOOKUP(N22,Sheet2!C3:C1004,Sheet2!H3:H1004) -> -13.69
B25: Item 3 | M25: y = | N25: =LOOKUP(N22,Sheet2!C3:C1004,Sheet2!I3:I1004) -> -8.27
A29: To access/download all the DIGMath Apps for Calculus
A30: Click this link: | C30: DIGMath for Calculus
A32: Created by: Sheldon P. Gordon
A33: Farmingdale State College
A34: Development of this module was supported by the
A35: NSF's Division of Undergraduate Education
A36: under grants DUE-0310123 and DUE-0442160.

Sheet Sheet2
C1: Q | D1: r = f(Q) | E1: r = g(Q) | F1: x1 | G1: y1 | H1: x2 | I1: y2
C3: =Sheet2!A6 -> 0.000 | D3: =r0 -> 12 | E3: =SIN(2*Q) -> 0 | F3: =D3*COS($C3) -> 12 | G3: =D3*SIN($C3) -> 0 | H3: =(r0+r00)*COS($C3)-r00*COS((r0+r00)*$C3/r00) -> 12 | I3: =(r0+r00)*SIN($C3)-r00*SIN((r0+r00)*$C3/r00) -> 0
C4: =C3+Sheet2!B$12 -> 0.160 | D4: =D3 -> 12 | E4: 0.3142630927 | F4: =D4*COS(C4) -> 11.84703283 | G4: =D4*SIN(C4) -> 1.909924872 | H4: 12.94815975 | I4: 0.4290208802
C5: =C4+Sheet2!B$12 -> 0.320 | D5: =D4 -> 12 | E5: 0.5966824909 | F5: 11.39203116 | G5: 3.771157112 | H5: 14.52791292 | I5: 2.828278933
A6: 0 | B6: Qmin | C6: =C5+Sheet2!B$12 -> 0.480 | D6: 12 | E6: 0.8186411625 | F6: 10.64659504 | G6: 5.536245483 | H6: 14.3749587 | I6: 6.885746991
A7: 160 | B7: Qmax | C7: =C6+Sheet2!B$12 -> 0.639 | D7: 12 | E7: 0.9576484483 | F7: 9.629729006 | G7: 7.160189891 | H7: 11.70399552 | I7: 10.2977119
C8: =C7+Sheet2!B$12 -> 0.799 | D8: 12 | E8: 0.9996189987 | F8: 8.36735758 | G8: 8.60158864 | H8: 8.217872779 | I8: 11.30637788
C9: =C8+Sheet2!B$12 -> 0.959 | D9: 12 | E9: 0.9403000158 | F9: 6.891664326 | G9: 9.82369395 | H9: 6.222428103 | I9: 10.62705033
C10: =C9+Sheet2!B$12 -> 1.119 | D10: 12 | E10: 0.785702182 | F10: 5.240271345 | G10: 10.79534882 | H10: 6.070025759 | I10: 10.59504945
C11: =C10+Sheet2!B$12 -> 1.279 | D11: 12 | E11: 0.5514906079 | F11: 3.455280122 | G11: 11.49178138 | H11: 5.810906694 | I11: 12.49466268
A12: delta Q = | B12: =(Sheet2!A7-Sheet2!A6)/1001 -> 0.1598401598 | C12: =C11+Sheet2!B$12 -> 1.439 | D12: 12 | E12: 0.2613975166 | F12: 1.582198164 | G12: 11.8952364 | H12: 3.443914478 | I12: 15.08041576
C13: =C12+Sheet2!B$12 -> 1.598 | D13: 12 | E13: -0.05518249865 | F13: -0.3312211876 | G13: 11.99542798 | H13: -0.7704978204 | I13: 15.95744153
C14: =C13+Sheet2!B$12 -> 1.758 | D14: 12 | E14: -0.366170974 | F14: -2.236196212 | G14: 11.7898018 | H14: -4.542353412 | I14: 14.26637488
C15: =C14+Sheet2!B$12 -> 1.918 | D15: 12 | E15: -0.6400560259 | F15: -4.08416047 | G15: 11.28360019 | H15: -6.069421392 | I15: 11.64825048
C16: =C15+Sheet2!B$12 -> 2.078 | D16: 12 | E16: -0.8490853915 | F16: -5.828000987 | G16: 10.48972852 | H16: -6.005257944 | I16: 10.4024125
C17: =C16+Sheet2!B$12 -> 2.238 | D17: 12 | E17: -0.9720785143 | F17: -7.423259372 | G17: 9.428426183 | H17: -6.662372333 | I17: 10.91260302
C18: =C17+Sheet2!B$12 -> 2.398 | D18: 12 | E18: -0.9965727299 | F18: -8.829265266 | G18: 8.126750572 | H18: -9.349791 | I18: 11.24063046
C19: =C18+Sheet2!B$12 -> 2.557 | D19: 12 | E19: -0.920086085 | F19: -10.01017321 | G19: 6.617887294 | H19: -12.8460332 | I19: 9.344737013
C20: =C19+Sheet2!B$12 -> 2.717 | D20: 12 | E20: -0.7503688291 | F20: -10.93587652 | G20: 4.940304106 | H20: -14.72920862 | I20: 5.422518599
C21: =C20+Sheet2!B$12 -> 2.877 | D21: 12 | E21: -0.5046180959 | F21: -11.58277483 | G21: 3.136770199 | H21: -14.06689442 | I21: 1.737726582
C22: =C21+Sheet2!B$12 -> 3.037 | D22: 12 | E22: -0.2077353499 | F22: -11.93437576 | G22: 1.253265818 | H22: -12.43630463 | I22: 0.1248203109
C23: =C22+Sheet2!B$12 -> 3.197 | D23: 12 | E23: 0.1101968325 | F23: -11.98171542 | G23: -0.6621899838 | H23: -12.12618014 | I23: -0.01870568872
C24: =C23+Sheet2!B$12 -> 3.357 | D24: 12 | E24: 0.416962975 | F24: -11.72358691 | G24: -2.560763565 | H24: -13.54672865 | I24: -0.9918385414
C25: =C24+Sheet2!B$12 -> 3.516 | D25: 12 | E25: 0.681479035 | F25: -11.16657108 | G25: -4.394051688 | H25: -14.76592545 | I25: -4.13722479
C26: =C25+Sheet2!B$12 -> 3.676 | D26: 12 | E26: 0.8769420924 | F26: -10.32486881 | G26: -6.115315539 | H26: -13.69462798 | I26: -8.266334887
C27: =C26+Sheet2!B$12 -> 3.836 | D27: 12 | E27: 0.9835462392 | F27: -9.219938875 | G27: -7.68067231 | H27: -10.45849174 | I27: -10.93844314
C28: =C27+Sheet2!B$12 -> 3.996 | D28: 12 | E28: 0.9904894756 | F28: -7.879950959 | G28: -9.050213969 | H28: -7.283971105 | I28: -11.15402764
C29: =C28+Sheet2!B$12 -> 4.156 | D29: 12 | E29: 0.8970682564 | F29: -6.339067416 | G29: -10.1890247 | H29: -6.026136205 | I29: -10.42958532
C30: =C29+Sheet2!B$12 -> 4.316 | D30: 12 | E30: 0.7127487799 | F30: -4.636572343 | G30: -11.06807106 | H30: -6.122597745 | I30: -11.04425943
C31: =C30+Sheet2!B$12 -> 4.476 | D31: 12 | E31: 0.4562077957 | F31: -2.815870049 | G31: -11.66494217 | H31: -5.277573082 | I31: -13.43481014
C32: =C31+Sheet2!B$12 -> 4.635 | D32: 12 | E32: 0.1534401244 | F32: -0.923378479 | G32: -11.9644211 | H32: -2.104123438 | I32: -15.67476109
C33: =C32+Sheet2!B$12 -> 4.795 | D33: 12 | E33: -0.1648753493 | F33: 0.9926541896 | G33: -11.95887276 | H33: 2.253660411 | I33: -15.62526053
C34: =C33+Sheet2!B$12 -> 4.955 | D34: 12 | E34: -0.4664843105 | F34: 2.883379608 | G34: -11.64843861 | H34: 5.347633403 | I34: -13.33494919
C35: =C34+Sheet2!B$12 -> 5.115 | D35: 12 | E35: -0.7208252845 | F35: 4.700594626 | G35: -11.04103302 | H35: 6.120975978 | I35: -10.9853423
C36: =C35+Sheet2!B$12 -> 5.275 | D36: 12 | E36: -0.9021263737 | F36: 6.397970205 | G36: -10.15214151 | H36: 6.03690557 | I36: -10.44325496
C37: =C36+Sheet2!B$12 -> 5.435 | D37: 12 | E37: -0.9920166759 | F37: 7.932232556 | G37: -9.004425949 | H37: 7.37066796 | I37: -11.17750162
C38: =C37+Sheet2!B$12 -> 5.594 | D38: 12 | E38: -0.9813877741 | F38: 9.264266385 | G38: -7.627146802 | H38: 10.590605 | I38: -10.88645368
C39: =C38+Sheet2!B$12 -> 5.754 | D39: 12 | E39: -0.8713166752 | F39: 10.36011212 | G39: -6.055417151 | H39: 13.78026127 | I39: -8.128692989
C40: =C39+Sheet2!B$12 -> 5.914 | D40: 12 | E40: -0.6729566788 | F40: 11.19183169 | G40: -4.3293075 | H40: 14.75387772 | I40: -3.992052422
C41: =C40+Sheet2!B$12 -> 6.074 | D41: 12 | E41: -0.4064072342 | F41: 11.7382208 | G41: -2.492824199 | H41: 13.48302412 | I41: -0.9195165092
C42: =C41+Sheet2!B$12 -> 6.234 | D42: 12 | E42: -0.09867730078 | F42: 11.98534951 | G42: -0.5927875235 | H42: 12.1013891 | I42: -0.01343537052
C43: =C42+Sheet2!B$12 -> 6.394 | D43: 12 | E43: 0.2190514199 | F43: 11.9269174 | G43: 1.32236199 | H43: 12.48302573 | I43: 0.1462589982
C44: =C43+Sheet2!B$12 -> 6.553 | D44: 12 | E44: 0.5145840678 | F44: 11.56441417 | G44: 3.20379851 | H44: 14.12290929 | I44: 1.839944619
C45: =C44+Sheet2!B$12 -> 6.713 | D45: 12 | E45: 0.7579748696 | F45: 10.90708166 | G45: 5.0035557 | H45: 14.70782273 | I45: 5.576462742
C46: =C45+Sheet2!B$12 -> 6.873 | D46: 12 | E46: 0.9245614881 | F46: 9.971678257 | G46: 6.675749601 | H46: 12.73434909 | I46: 9.458226527
C47: =C46+Sheet2!B$12 -> 7.033 | D47: 12 | E47: 0.9974640113 | F47: 8.782051627 | G47: 8.17774842 | H47: 9.224181904 | I47: 11.26013832
C48: =C47+Sheet2!B$12 -> 7.193 | D48: 12 | E48: 0.9692953622 | F48: 7.36853074 | G48: 9.471259406 | H48: 6.603699249 | I48: 10.88166554
C49: =C48+Sheet2!B$12 -> 7.353 | D49: 12 | E49: 0.8429098175 | F49: 5.767152642 | G49: 10.52330511 | H49: 6.009316195 | I49: 10.41091012
C50: =C49+Sheet2!B$12 -> 7.512 | D50: 12 | E50: 0.6311137893 | F50: 4.018743713 | G50: 11.30706412 | H50: 6.053470157 | I50: 11.7297437
C51: =C50+Sheet2!B$12 -> 7.672 | D51: 12 | E51: 0.3553681752 | F51: 2.167878811 | G51: 11.80255487 | H51: 4.440326182 | I51: 14.35919457
C52: =C51+Sheet2!B$12 -> 7.832 | D52: 12 | E52: 0.04361376503 | F52: 0.2617448623 | G52: 11.99714506 | H52: 0.6095768431 | I52: 15.97339825
C53: =C52+Sheet2!B$12 -> 7.992 | D53: 12 | E53: -0.2725599468 | F53: -1.651062147 | G53: 11.88587371 | H53: -3.571684807 | I53: 15.00373817
C54: =C53+Sheet2!B$12 -> 8.152 | D54: 12 | E54: -0.5611156663 | F54: -3.521776108 | G54: 11.47157762 | H54: -5.850043564 | I54: 12.39970963
C55: =C54+Sheet2!B$12 -> 8.312 | D55: 12 | E55: -0.7928145794 | F55: -5.30270405 | G55: 10.76481908 | H55: -6.061860673 | I55: 10.56284236
C56: =C55+Sheet2!B$12 -> 8.472 | D56: 12 | E56: -0.9441790663 | F56: -6.948442058 | G56: 9.783616559 | H56: -6.256364076 | I56: 10.65465441
C57: =C56+Sheet2!B$12 -> 8.631 | D57: 12 | E57: -0.9998716452 | F57: -8.417032818 | G57: 8.552985359 | H57: -8.32861622 | I57: 11.31120845
C58: =C57+Sheet2!B$12 -> 8.791 | D58: 12 | E58: -0.9542490907 | F58: -9.671035302 | G58: 7.104299838 | H58: -11.83059569 | I58: 10.21188861
C59: =C58+Sheet2!B$12 -> 8.951 | D59: 12 | E59: -0.8119342513 | F59: -10.67847931 | G59: 5.474493548 | H59: -14.42784919 | I59: 6.734161157
C60: =C59+Sheet2!B$12 -> 9.111 | D60: 12 | E60: -0.5873476249 | F60: -11.41368053 | G60: 3.705117632 | H60: -14.48846623 | I60: 2.702380902
C61: =C60+Sheet2!B$12 -> 9.271 | D61: 12 | E61: -0.3032461566 | F61: -11.85789536 | G61: 1.841281492 | H61: -12.88862919 | I61: 0.385812582
C62: =C61+Sheet2!B$12 -> 9.431 | D62: 12 | E62: 0.0115826806 | F62: -11.99979875 | G62: -0.0694972491 | H62: -12.0014085 | I62: -2.175444428e-05
C63: =C62+Sheet2!B$12 -> 9.590 | D63: 12 | E63: 0.3252378663 | F63: -11.83577294 | G63: -1.978504191 | H63: -13.00866193 | I63: -0.4751110886
C64: =C63+Sheet2!B$12 -> 9.750 | D64: 12 | E64: 0.6059373041 | F64: -11.36999969 | G64: -3.837070103 | H64: -14.56488073 | I64: -2.956611668
C65: =C64+Sheet2!B$12 -> 9.910 | D65: 12 | E65: 0.8252382424 | F65: -10.61435367 | G65: -5.597811726 | H65: -14.31844072 | I65: -7.036414838
C66: =C65+Sheet2!B$12 -> 10.070 | D66: 12 | E66: 0.960919325 | F66: -9.588099719 | G66: -7.215839783 | H66: -11.57624731 | I66: -10.38006019
C67: =C66+Sheet2!B$12 -> 10.230 | D67: 12 | E67: =SIN(2*Q) -> 0.9992322403 | F67: -8.317401693 | G67: -8.649903414 | H67: =(r0+r00)*COS($C67)-r00*COS((r0+r00)*$C67/r00) -> -8.109339227 | I67: =(r0+r00)*SIN($C67)-r00*SIN((r0+r00)*$C67/r00) -> -11.29912179
C68: =C67+Sheet2!B$12 -> 10.390 | D68: 12 | E68: 0.9362948119 | F68: =D68*COS(C68) -> -6.83465544 | G68: =D68*SIN(C68) -> -9.863441844 | H68: -6.1912097 | I68: -10.6004322
C69: =C68+Sheet2!B$12 -> 10.549 | D69: =D68 -> 12 | E69: 0.7784843724 | F69: -5.177662876 | G69: -10.82551648 | H69: -6.078057473 | I69: -10.6301199
C70: =C69+Sheet2!B$12 -> 10.709 | D70: 12 | E70: 0.5417915598 | F70: -3.388668242 | G70: -11.5115997 | H70: -5.768709975 | I70: -12.59066541
C71: =C70+Sheet2!B$12 -> 10.869 | D71: 12 | E71: 0.2502000166 | F71: -1.513281113 | G71: -11.90420011 | H71: -3.313456232 | I71: -15.15465159
C72: =C71+Sheet2!B$12 -> 11.029 | D72: 12 | E72: -0.06674382882 | F72: 0.4006864034 | G72: -11.99330857 | H72: 0.9307746933 | I72: -15.93779
C73: =C72+Sheet2!B$12 -> 11.189 | D73: 12 | E73: -0.3769246462 | F73: 2.304438609 | G73: -11.77665329 | H73: 4.641115905 | I73: -14.17225312
C74: =C73+Sheet2!B$12 -> 11.349 | D74: 12 | E74: -0.6489123905 | F74: 4.149440241 | G74: -11.2597578 | H74: 6.083069027 | I74: -11.56880687
C75: =C74+Sheet2!B$12 -> 11.508 | D75: 12 | E75: -0.8551470497 | F75: 5.888653855 | G75: -10.4558001 | H75: 6.002276534 | I75: -10.39652083
C76: =C75+Sheet2!B$12 -> 11.668 | D76: 12 | E76: -0.9747312494 | F76: 7.47773902 | G76: -9.385276722 | H76: 6.724038389 | I76: -10.94331489
C77: =C76+Sheet2!B$12 -> 11.828 | D77: 12 | E77: -0.9955477453 | F77: 8.876182762 | G77: -8.075480145 | H77: 9.476617396 | I77: -11.21791334
C78: =C77+Sheet2!B$12 -> 11.988 | D78: 12 | E78: -0.9154872404 | F78: 10.04833242 | G78: -6.559803017 | H78: 12.95540707 | I78: -9.228320046
C79: =C78+Sheet2!B$12 -> 12.148 | D79: 12 | E79: -0.7426621169 | F79: 10.96430459 | G79: -4.87688681 | H79: 14.74692817 | I79: -5.268941777
C80: =C79+Sheet2!B$12 -> 12.308 | D80: 12 | E80: -0.4945844229 | F80: 11.60074699 | G80: -3.069636678 | H80: 14.00951647 | I80: -1.638543939
C81: =C80+Sheet2!B$12 -> 12.468 | D81: 12 | E81: -0.1963914095 | F81: 11.94143383 | G81: -1.184127609 | H81: 12.39156032 | I81: -0.1055301915
C82: =C81+Sheet2!B$12 -> 12.627 | D82: 12 | E82: 0.1217015799 | F82: 11.97767945 | G82: 0.7315702337 | H82: 12.15354649 | I82: 0.02518888757
C83: =C82+Sheet2!B$12 -> 12.787 | D83: 12 | E83: 0.4274627747 | F83: 11.70855979 | G83: 2.628617039 | H83: 13.61018934 | I83: 1.067339913
C84: =C83+Sheet2!B$12 -> 12.947 | D84: 12 | E84: 0.6899099619 | F84: 11.14093594 | G84: 4.458648495 | H84: 14.77467976 | I84: 4.283850705
C85: =C84+Sheet2!B$12 -> 13.107 | D85: 12 | E85: 0.8824498564 | F85: 10.28927918 | G85: 6.175008814 | H85: 13.60588098 | I85: 8.401877609
C86: =C85+Sheet2!B$12 -> 13.267 | D86: 12 | E86: 0.9855727487 | F86: 9.175302119 | G86: 7.7339402 | H86: 10.32650756 | I86: 10.98688218
C87: =C86+Sheet2!B$12 -> 13.427 | D87: 12 | E87: 0.9888293883 | F87: 7.82740506 | G87: 9.095698435 | H87: 7.20010344 | I87: 11.12922103
C88: =C87+Sheet2!B$12 -> 13.586 | D88: 12 | E88: 0.8918897858 | F88: 6.279952007 | G88: 10.22556614 | H88: 6.017369175 | I88: 10.41791225
C89: =C88+Sheet2!B$12 -> 13.746 | D89: 12 | E89: 0.7045766507 | F89: 4.572394545 | G89: 11.09473786 | H89: 6.12286598 | I89: 11.10581391
C90: =C89+Sheet2!B$12 -> 13.906 | D90: 12 | E90: 0.4458700747 | F90: 2.748266043 | G90: 11.68105448 | H90: 5.204128497 | I90: 13.53450103
C91: =C90+Sheet2!B$12 -> 14.066 | D91: 12 | E91: 0.1419843135 | F91: 0.8540717973 | G91: 11.96956814 | H91: 1.952862921 | I91: 15.72097314
C92: =C91+Sheet2!B$12 -> 14.226 | D92: 12 | E92: -0.176288454 | F92: -1.061896605 | G92: 11.95292331 | H92: -2.401358212 | I92: 15.57254238
C93: =C92+Sheet2!B$12 -> 14.386 | D93: 12 | E93: -0.4766982404 | F93: -2.950792456 | G93: 11.63154435 | H93: -5.414321114 | I93: 13.23505129
C94: =C93+Sheet2!B$12 -> 14.545 | D94: 12 | E94: -0.7288050811 | F94: -4.764459247 | G94: 11.01362466 | H94: -6.118123579 | I94: 10.92910859
C95: =C94+Sheet2!B$12 -> 14.705 | D95: 12 | E95: -0.907063459 | F95: -6.4566584 | G95: 10.11491781 | H95: -6.049770195 | I95: 10.45882943
C96: =C95+Sheet2!B$12 -> 14.865 | D96: 12 | E96: -0.9934107842 | F96: -7.984248098 | G96: 8.958335912 | H96: -7.460149723 | I96: 11.19951839
C97: =C96+Sheet2!B$12 -> 15.025 | D97: 12 | E97: -0.9790976431 | F97: -9.308283162 | G97: 7.573365472 | H97: -10.7227135 | I97: 10.8308987
C98: =C97+Sheet2!B$12 -> 15.185 | D98: 12 | E98: -0.8655743596 | F98: -10.39500794 | G98: 5.995315657 | H98: -13.8627063 | I98: 7.98906561
C99: =C98+Sheet2!B$12 -> 15.345 | D99: 12 | E99: -0.6643440367 | F99: -11.21671691 | G99: 4.264418102 | H99: -14.7386038 | I99: 3.848450568
C100: =C99+Sheet2!B$12 -> 15.504 | D100: 12 | E100: -0.3957969686 | F100: -11.75246098 | G100: 2.424801222 | H100: -13.41920793 | I100: 0.8503650692
C101: =C100+Sheet2!B$12 -> 15.664 | D101: 12 | E101: -0.0871445302 | F101: -11.9885816 | G101: 0.5233651804 | H101: -12.07922095 | I101: 0.009256253021
C102: =C101+Sheet2!B$12 -> 15.824 | D102: 12 | E102: 0.2303381013 | F102: -11.91905901 | G102: -1.391413809 | H102: -12.53163283 | I102: -0.1699407888
C103: =C102+Sheet2!B$12 -> 15.984 | D103: 12 | E103: 0.5244810016 | F103: -11.54566563 | G103: -3.270719361 | H103: -14.17743457 | I103: -1.945155955
C104: =C103+Sheet2!B$12 -> 16.144 | D104: 12 | E104: 0.7654792179 | F104: -10.87792096 | G104: -5.066639468 | H104: -14.68275157 | I104: -5.73064002
C105: =C104+Sheet2!B$12 -> 16.304 | D105: 12 | E105: 0.9289128493 | F105: =D105*COS(C105) -> -9.932848841 | G105: =D105*SIN(C105) -> -6.733387996 | H105: -12.62046596 | I105: -9.56871076
C106: =C105+Sheet2!B$12 -> 16.464 | D106: 12 | E106: 0.99822147 | F106: -8.73454343 | G106: -8.228471977 | H106: -9.09990785 | I106: -11.27650066
C107: =C106+Sheet2!B$12 -> 16.623 | D107: 12 | E107: 0.9663821665 | F107: -7.31355496 | G107: -9.513774953 | H107: -6.548012771 | I107: -10.85063374
C108: =C107+Sheet2!B$12 -> 16.783 | D108: 12 | E108: 0.8366211562 | F108: -5.706110861 | G108: -10.55652873 | H108: -6.014330343 | I108: -10.42206279
C109: =C108+Sheet2!B$12 -> 16.943 | D109: 12 | E109: 0.6220868807 | F109: -3.953192162 | G109: -11.3301488 | H109: -6.035118678 | I109: -11.81319666
C110: =C109+Sheet2!B$12 -> 17.103 | D110: 12 | E110: 0.3445176991 | F110: -2.099488696 | G110: -11.81491207 | H110: -4.335073573 | I110: -14.45058362
C111: =C110+Sheet2!B$12 -> 17.263 | D111: 12 | E111: 0.03203918006 | F111: -0.1922597578 | G111: -11.99845974 | H111: -0.4481457216 | I111: -15.98563717
C112: =C111+Sheet2!B$12 -> 17.423 | D112: 12 | E112: -0.2836858095 | F112: 1.719870752 | G112: -11.87611235 | H112: 3.696686583 | I112: -14.92472723
C113: =C112+Sheet2!B$12 -> 17.582 | D113: 12 | E113: -0.5706654438 | F113: 3.58815397 | G113: -11.45098909 | H113: 5.886181155 | I113: -12.30592435
C114: =C113+Sheet2!B$12 -> 17.742 | D114: 12 | E114: -0.7998206105 | F114: 5.364958897 | G114: -10.73392827 | H114: 6.053692886 | I114: -10.53349423
C115: =C114+Sheet2!B$12 -> 17.902 | D115: 12 | E115: -0.9479314429 | F115: 7.004986732 | G115: -9.743211015 | H115: 6.293068484 | I115: -10.68312384
C116: =C115+Sheet2!B$12 -> 18.062 | D116: 12 | E116: -0.9999901459 | F116: 8.466425739 | G116: -8.504095202 | H116: 8.441480856 | I116: -11.31351427
C117: =C116+Sheet2!B$12 -> 18.222 | D117: 12 | E117: -0.9507217081 | F117: 9.712017222 | G117: -7.048171499 | H117: 11.95591735 | I117: -10.12262639
C118: =C117+Sheet2!B$12 -> 18.382 | D118: 12 | E118: -0.8051184085 | F118: 10.71000541 | G118: -5.412557993 | H118: 14.47708515 | I118: -6.581790465
C119: =C118+Sheet2!B$12 -> 18.541 | D119: 12 | E119: -0.5779339586 | F119: 11.43494708 | G119: -3.638953879 | H119: 14.44664615 | I119: -2.579000435
C120: =C119+Sheet2!B$12 -> 18.701 | D120: 12 | E120: -0.2921885361 | F120: 11.86836017 | G120: -1.772576354 | H120: 12.83018849 | I120: -0.3454282829
C121: =C120+Sheet2!B$12 -> 18.861 | D121: 12 | E121: 0.02316380723 | F121: 11.99919502 | G121: 0.1389921672 | H121: 12.00563132 | I121: 0.0001739917791
C122: =C121+Sheet2!B$12 -> 19.021 | D122: 12 | E122: 0.336169005 | F122: 11.82411607 | G122: 2.047017149 | H122: 13.07001517 | I122: 0.5241362626
C123: =C122+Sheet2!B$12 -> 19.181 | D123: 12 | E123: 0.615110823 | F123: 11.34758686 | G123: 3.902854395 | H123: 14.59926753 | I123: 3.087292006
C124: =C123+Sheet2!B$12 -> 19.341 | D124: 12 | E124: 0.8317246058 | F124: 10.58175629 | G124: 5.659190213 | H124: 14.25832758 | I124: 7.186032732
C125: =C124+Sheet2!B$12 -> 19.500 | D125: 12 | E125: 0.9640612819 | F125: 9.546148837 | G125: 7.27124765 | H125: 11.44748281 | I125: 10.45890267
C126: =C125+Sheet2!B$12 -> 19.660 | D126: 12 | E126: 0.998711422 | F126: 8.267166831 | G126: 8.697928063 | H126: 8.003100095 | I126: 11.28954283
C127: =C126+Sheet2!B$12 -> 19.820 | D127: 12 | E127: 0.9321639919 | F127: 6.777417313 | G127: 9.902858909 | H127: 6.162653104 | I127: 10.57491844
C128: =C127+Sheet2!B$12 -> 19.980 | D128: 12 | E128: 0.771162119 | F128: 5.114880742 | G128: 10.85532105 | H128: 6.085825036 | I128: 10.66805274
C129: =C128+Sheet2!B$12 -> 20.140 | D129: 12 | E129: 0.5320198233 | F129: 3.321942703 | G129: 11.5310319 | H129: 5.723397648 | I129: 12.68759727
C130: =C129+Sheet2!B$12 -> 20.300 | D130: 12 | E130: 0.2389689489 | F130: 1.444313304 | G130: 11.91276454 | H130: 3.180395019 | I130: 15.22634051
C131: =C130+Sheet2!B$12 -> 20.460 | D131: 12 | E131: =SIN(2*Q) -> -0.07829620444 | F131: -0.4701381798 | G131: 11.99078688 | H131: =(r0+r00)*COS($C131)-r00*COS((r0+r00)*$C131/r00) -> -1.090274539 | I131: =(r0+r00)*SIN($C131)-r00*SIN((r0+r00)*$C131/r00) -> 15.91447198
C132: =C131+Sheet2!B$12 -> 20.619 | D132: 12 | E132: -0.3876277491 | F132: -2.372603713 | G132: 11.76310978 | H132: -4.736579527 | I132: 14.07695927
C133: =C132+Sheet2!B$12 -> 20.779 | D133: =D132 -> 12 | E133: -0.6576816952 | F133: -4.214580836 | G133: 11.23553774 | H133: -6.094513231 | I133: 11.49149864
C134: =C133+Sheet2!B$12 -> 20.939 | D134: 12 | E134: -0.8610939788 | F134: -5.949109211 | G134: 10.42152098 | H134: -6.000490773 | I134: 10.39318108
C135: =C134+Sheet2!B$12 -> 21.099 | D135: 12 | E135: -0.9772532117 | F135: -7.531967858 | G135: 9.341812468 | H135: -6.788698395 | I135: 10.97366965
C136: =C135+Sheet2!B$12 -> 21.259 | D136: 12 | E136: -0.994389195 | F136: -8.922802542 | G136: 8.023938858 | H136: -9.604540791 | I136: 11.19192802
C137: =C136+Sheet2!B$12 -> 21.419 | D137: 12 | E137: -0.9107655713 | F137: -10.08615459 | G137: 6.501498718 | H137: -13.06236263 | I137: 9.109057848
C138: =C137+Sheet2!B$12 -> 21.578 | D138: 12 | E138: -0.7348557669 | F138: -10.99236489 | G138: 4.813305939 | H138: -14.76100564 | I138: 5.115865546
C139: =C138+Sheet2!B$12 -> 21.738 | D139: 12 | E139: -0.484484395 | F139: -11.61833005 | G139: 3.002400199 | H139: -13.9509035 | I139: 1.542433594
C140: =C139+Sheet2!B$12 -> 21.898 | D140: 12 | E140: -0.1850211207 | F140: -11.94809136 | G140: 1.114949684 | H140: -12.34887958 | I140: 0.08829049477
C141: =C140+Sheet2!B$12 -> 22.058 | D141: 12 | E141: 0.1331899995 | F141: -11.97324173 | G141: -0.8009259459 | H141: -12.18343561 | I141: -0.0330046122
C142: =C141+Sheet2!B$12 -> 22.218 | D142: 12 | E142: 0.4379052248 | F142: -11.69313996 | G142: -2.696382347 | H142: -13.67327369 | I142: -1.146023984
C143: =C142+Sheet2!B$12 -> 22.378 | D143: 12 | E143: 0.6982483285 | F143: -11.11492712 | G143: -4.523095755 | H143: -14.78007811 | I143: -4.431810533
C144: =C143+Sheet2!B$12 -> 22.537 | D144: 12 | E144: 0.8878392282 | F144: -10.25334445 | G144: -6.234494973 | H144: -13.51409924 | I144: -8.535210527
C145: =C144+Sheet2!B$12 -> 22.697 | D145: 12 | E145: 0.9874670309 | F145: -9.130357614 | G145: -7.786948686 | H145: -10.19478553 | I145: -11.03179124
C146: =C145+Sheet2!B$12 -> 22.857 | D146: 12 | E146: 0.9870366367 | F146: -7.774596622 | G146: -9.140877822 | H146: -7.1191041 | I146: -11.10320798
C147: =C146+Sheet2!B$12 -> 23.017 | D147: 12 | E147: 0.8865916566 | F147: -6.220625963 | G147: -10.2617646 | H147: -6.010507867 | I147: -10.40832355
C148: =C147+Sheet2!B$12 -> 23.177 | D148: 12 | E148: 0.6963099935 | F148: -4.508063383 | G148: -11.12103253 | H148: -6.121659712 | I148: -11.16995469
C149: =C148+Sheet2!B$12 -> 23.337 | D149: 12 | E149: 0.4354725344 | F149: -2.680569857 | G149: -11.69677499 | H149: -5.127293374 | I149: -13.63388831
C150: =C149+Sheet2!B$12 -> 23.497 | D150: 12 | E150: 0.1305094536 | F150: -0.7847364693 | G150: -11.9743137 | H150: -1.799997266 | I150: -15.7638304
C151: =C150+Sheet2!B$12 -> 23.656 | D151: 12 | E151: -0.1876779073 | F151: 1.131103404 | G151: -11.94657294 | H151: 2.54710417 | I151: -15.51668211
C152: =C151+Sheet2!B$12 -> 23.816 | D152: 12 | E152: -0.486848215 | F152: 3.018106331 | G152: -11.61425995 | H152: 5.477653234 | I152: -13.13524887
C153: =C152+Sheet2!B$12 -> 23.976 | D153: 12 | E153: -0.736687099 | F153: 4.828164063 | G153: -10.98584689 | H153: 6.114165175 | I153: -10.87559921
C154: =C153+Sheet2!B$12 -> 24.136 | D154: 12 | E154: -0.9118788499 | F154: 6.515130032 | G154: -10.07735484 | H154: 6.064819159 | I154: -10.47621324
C155: =C154+Sheet2!B$12 -> 24.296 | D155: 12 | E155: -0.9946716136 | F155: 8.03599584 | G155: -8.911945403 | H155: 7.552367038 | I155: -11.21995523
C156: =C155+Sheet2!B$12 -> 24.456 | D156: 12 | E156: -0.9766761535 | F156: 9.35198773 | G156: -7.519330123 | H156: 10.8546828 | I156: -10.77176851
C157: =C156+Sheet2!B$12 -> 24.615 | D157: 12 | E157: -0.8597159159 | F157: 10.42955511 | G157: -5.935013075 | H157: 13.94189313 | I157: -7.847569325
C158: =C157+Sheet2!B$12 -> 24.775 | D158: 12 | E158: -0.6556422642 | F158: 11.24122591 | G158: -4.199385672 | H158: 14.72017553 | I158: -3.706533344
C159: =C158+Sheet2!B$12 -> 24.935 | D159: 12 | E159: -0.3851336018 | F159: 11.76630697 | G159: -2.356696915 | H159: 13.35541168 | I159: -0.7843701076
C160: =C159+Sheet2!B$12 -> 25.095 | D160: 12 | E160: -0.07560006805 | F160: 11.99141159 | G160: -0.4539252831 | H160: 12.05971817 | I160: -0.006044825746
C161: =C160+Sheet2!B$12 -> 25.255 | D161: 12 | E161: 0.2415938799 | F161: 11.91080083 | G161: 1.460418959 | H161: 12.58203129 | I161: 0.1959564486
C162: =C161+Sheet2!B$12 -> 25.415 | D162: 12 | E162: 0.5343075695 | F162: 11.52652984 | G162: 3.33753051 | H162: 14.23034544 | I162: 2.053313379
C163: =C162+Sheet2!B$12 -> 25.574 | D163: 12 | E163: 0.7728808672 | F163: 10.84839541 | G163: 5.129553297 | H163: 14.65398156 | I163: 5.884915548
C164: =C163+Sheet2!B$12 -> 25.734 | D164: 12 | E164: 0.9331395847 | F164: 9.893686267 | G164: 6.790800546 | H164: 12.50449803 | I164: 9.676116402
C165: =C164+Sheet2!B$12 -> 25.894 | D165: 12 | E165: 0.9988450044 | F165: 8.686742266 | G165: 8.278919543 | H165: 8.977083835 | I165: 11.28978583
C166: =C165+Sheet2!B$12 -> 26.054 | D166: 12 | E166: 0.9633393182 | F166: 7.258333875 | G166: 9.555971398 | H166: 6.495301161 | I166: 10.81963846
C167: =C166+Sheet2!B$12 -> 26.214 | D167: 12 | E167: 0.8302202513 | F167: 5.644877691 | G167: 10.58939828 | H167: 6.02017751 | I167: 10.43591458
C168: =C167+Sheet2!B$12 -> 26.374 | D168: 12 | E168: 0.6129765111 | F168: 3.887508017 | G168: 11.35285345 | H168: 6.014274005 | I168: 11.8985156
C169: =C168+Sheet2!B$12 -> 26.533 | D169: 12 | E169: 0.3336210015 | F169: =D169*COS(C169) -> 2.031028163 | G169: =D169*SIN(C169) -> 11.82687298 | H169: 4.226640106 | I169: 14.54041505
C170: =C169+Sheet2!B$12 -> 26.693 | D170: 12 | E170: 0.02046029662 | F170: 0.1227682047 | G170: 11.99937198 | H170: 0.2863392384 | I170: 15.99414065
C171: =C170+Sheet2!B$12 -> 26.853 | D171: 12 | E171: -0.2947736121 | F171: -1.788621671 | G171: 11.86595266 | H171: -3.818843618 | I171: 14.84349446
C172: =C171+Sheet2!B$12 -> 27.013 | D172: 12 | E172: -0.5801386591 | F172: -3.654411481 | G172: 11.43001648 | H172: -5.919384741 | I172: 12.21342229
C173: =C172+Sheet2!B$12 -> 27.173 | D173: 12 | E173: -0.8067193352 | F173: -5.427033798 | G173: 10.70267743 | H173: -6.045652735 | I173: 10.50699526
C174: =C173+Sheet2!B$12 -> 27.333 | D174: 12 | E174: -0.9515566421 | F174: -7.061296451 | G174: 9.702478674 | H174: -6.332587204 | I174: 10.71233595
C175: =C174+Sheet2!B$12 -> 27.493 | D175: 12 | E175: -0.999974485 | F175: -8.515534688 | G175: 8.454919809 | H175: -8.556373982 | I175: 11.31319974
C176: =C175+Sheet2!B$12 -> 27.652 | D176: 12 | E176: -0.9470667738 | F176: -9.752673391 | G176: 6.991806758 | H176: -12.07983154 | I176: 10.02996651
C177: =C176+Sheet2!B$12 -> 27.812 | D177: 12 | E177: -0.7981945487 | F177: -10.74117229 | G177: 5.350440896 | H177: -14.52264489 | I177: 6.428768984
C178: =C177+Sheet2!B$12 -> 27.972 | D178: 12 | E178: -0.568442755 | F178: -11.45583008 | G178: 3.572668071 | H178: -14.40256133 | I178: 2.458216025
C179: =C178+Sheet2!B$12 -> 28.132 | D179: 12 | E179: -0.2810917147 | F179: -11.87842689 | G179: 1.703811762 | H179: -12.77295332 | I179: 0.307805315
C180: =C179+Sheet2!B$12 -> 28.292 | D180: 12 | E180: 0.03474182614 | F180: -11.99818882 | G180: -0.2084824233 | H180: -12.01266037 | I180: -0.000586976096
C181: =C180+Sheet2!B$12 -> 28.452 | D181: 12 | E181: 0.3470550423 | F181: -11.8120626 | G181: -2.115461448 | H181: -13.13209675 | I181: -0.5761445096
C182: =C181+Sheet2!B$12 -> 28.611 | D182: 12 | E182: 0.6242018168 | F182: -11.32479342 | G182: -3.968507782 | H182: -14.63097473 | I182: -3.220228745
C183: =C182+Sheet2!B$12 -> 28.771 | D183: 12 | E183: 0.8380993826 | F183: -10.54880398 | G183: -5.720378885 | H183: -14.19465684 | I183: -7.334470079
C184: =C183+Sheet2!B$12 -> 28.931 | D184: 12 | E184: 0.9670738974 | F184: -9.503877767 | G184: -7.326411631 | H184: -11.31783482 | I184: -10.53421383
C185: =C184+Sheet2!B$12 -> 29.091 | D185: 12 | E185: 0.9980566135 | F185: -8.216654681 | G185: -8.745660973 | H185: -7.899235623 | I185: -11.27774694
C186: =C185+Sheet2!B$12 -> 29.251 | D186: 12 | E186: 0.92790811 | F186: -6.719951865 | G186: -9.941943821 | H186: -6.136697745 | I186: -10.55062499
C187: =C186+Sheet2!B$12 -> 29.411 | D187: 12 | E187: 0.7637364041 | F187: -5.051927051 | G187: -10.88476151 | H187: -6.093197778 | I187: -10.70884161
C188: =C187+Sheet2!B$12 -> 29.570 | D188: 12 | E188: 0.5221767095 | F188: -3.255105743 | G188: -11.55007734 | H188: -5.674918863 | I188: -12.78533548
C189: =C188+Sheet2!B$12 -> 29.730 | D189: 12 | E189: 0.2277058205 | F189: -1.375297052 | G189: -11.92092941 | H189: -3.044819975 | I189: -15.29538078
C190: =C189+Sheet2!B$12 -> 29.890 | D190: 12 | E190: -0.08983807561 | F190: 0.5395741873 | G190: -11.98786302 | H190: 1.248865686 | I190: -15.88752106
C191: =C190+Sheet2!B$12 -> 30.050 | D191: 12 | E191: -0.3982788467 | F191: 2.440689238 | G191: -11.74917172 | H191: 4.828715422 | I191: -13.98062449
C192: =C191+Sheet2!B$12 -> 30.210 | D192: 12 | E192: -0.6663627633 | F192: 4.279580069 | G192: -11.21094084 | H192: 6.103857537 | I192: -11.41640734
C193: =C192+Sheet2!B$12 -> 30.370 | D193: 12 | E193: -0.8669253809 | F193: 6.009365028 | G193: -10.38689231 | H193: 6.000017133 | I193: -10.39233436
C194: =C193+Sheet2!B$12 -> 30.529 | D194: 12 | E194: -0.9796440628 | F194: 7.585944065 | G194: -9.298034881 | H194: 6.856347942 | I194: -11.00353579
C195: =C194+Sheet2!B$12 -> 30.689 | D195: 12 | E195: =SIN(2*Q) -> -0.9930972345 | F195: 8.969123042 | G195: -7.97212844 | H195: =(r0+r00)*COS($C195)-r00*COS((r0+r00)*$C195/r00) -> 9.733438525 | I195: =(r0+r00)*SIN($C195)-r00*SIN((r0+r00)*$C195/r00) -> -11.1626204
C196: =C195+Sheet2!B$12 -> 30.849 | D196: 12 | E196: -0.9059217112 | F196: 10.12363846 | G196: -6.442976351 | H196: 13.16679514 | I196: -8.987036905
C197: =C196+Sheet2!B$12 -> 31.009 | D197: =D196 -> 12 | E197: -0.7269508265 | F197: 11.02005651 | G197: -4.749563624 | H197: 14.77147061 | I197: -4.963422047
C198: =C197+Sheet2!B$12 -> 31.169 | D198: 12 | E198: -0.4743193672 | F198: 11.63552341 | G198: -2.935063015 | H198: 13.89118485 | I198: -1.449427213
C199: =C198+Sheet2!B$12 -> 31.329 | D199: 12 | E199: -0.1736260089 | F199: 11.95434815 | G199: -1.045734362 | H199: 12.30834504 | I199: -0.07299963171
C200: =C199+Sheet2!B$12 -> 31.489 | D200: 12 | E200: 0.1446605499 | F200: 11.96840242 | G200: 0.8702547942 | H200: 12.21579004 | I200: 0.04227027195
C201: =C200+Sheet2!B$12 -> 31.648 | D201: 12 | E201: 0.4482889242 | F201: 11.67732794 | G201: 2.764057216 | H201: 13.73584908 | I201: 1.22788872
... 803 more rows

Sheet Sheet3
